fUST/lending_fUST_20240717
["ID","MTS","AMOUNT","RATE_DAILY","PERIOD"]
[332430427,1721177446176,-500.0,0.00021917,2]
[332430428,1721177446186,-500.0,0.00021917,2]
[332430429,1721177446198,-500.0,0.00021917,2]
[332430430,1721177446207,-511.69507559,0.00021917,2]
[332430431,1721177446218,-506.34399339,0.00021917,2]
[332430432,1721177446227,-500.0,0.00021917,2]
[332430433,1721177446237,-500.0,0.00021917,2]
[332430434,1721177446247,-500.0,0.00021917,2]
[332430435,1721177446258,-500.0,0.00021917,2]
[332430436,1721177446267,-524.46903918,0.00021917,2]
[332430437,1721177446277,-368.98335614,0.00021917,2]
[332430438,1721177446287,-500.0,0.00021917,2]
[332430439,1721177446296,-500.0,0.00021917,2]
[332430440,1721177446306,-500.0,0.00021917,2]
[332430441,1721177446316,-500.0,0.00021917,2]
[332430442,1721177446325,-500.0,0.00021917,2]
[332430443,1721177446335,-500.0,0.00021917,2]
[332430444,1721177446345,-428.34305079,0.00021917,2]
[332430445,1721177446357,-500.0,0.00021917,2]
[332430446,1721177446367,-500.0,0.00021917,2]
[332430447,1721177446376,-500.0,0.00021917,2]
[332430448,1721177446387,-500.0,0.00021917,2]
[332430449,1721177446396,-500.0,0.00021917,2]
[332430450,1721177446406,-500.0,0.00021917,2]
[332430451,1721177446415,-510.39231164,0.00021917,2]
[332430452,1721177446427,-500.0,0.00021917,2]
[332430453,1721177446437,-190.10340812,0.00021917,2]
[332430454,1721177446448,-500.0,0.00021917,2]
[332430455,1721177446457,-500.0,0.00021917,2]
[332430456,1721177446466,-500.0,0.00021917,2]
[332430457,1721177446475,-500.0,0.00021917,2]
[332430458,1721177446484,-500.0,0.00021917,2]
[332430459,1721177446494,-500.0,0.00021917,2]
[332430460,1721177446503,-500.0,0.00021917,2]
[332430461,1721177446514,-500.0,0.00021917,2]
[332430462,1721177446523,-500.0,0.00021917,2]
[332430463,1721177446533,-500.0,0.00021917,2]
[332430464,1721177446541,-595.54493059,0.00021917,2]
[332430465,1721177446551,-500.0,0.00021917,2]
[332430466,1721177446560,-500.0,0.00021917,2]
[332430467,1721177446570,-500.0,0.00021917,2]
[332430468,1721177446579,-536.8669122,0.00021917,2]
[332430469,1721177446588,-500.0,0.00021917,2]
[332430470,1721177446597,-500.0,0.00021917,2]
[332430471,1721177446606,-500.0,0.00021917,2]
[332430472,1721177446616,-500.0,0.00021917,2]
[332430473,1721177446626,-500.0,0.00021917,2]
[332430474,1721177446636,-151.0,0.00021917,2]
[332430475,1721177446645,-500.0,0.00021917,2]
[332430477,1721177446655,-500.0,0.00021917,2]
[332430478,1721177446664,-500.0,0.00021917,2]
[332430479,1721177446673,-500.0,0.00021917,2]
[332430480,1721177446683,-508.28451475,0.00021917,2]
[332430481,1721177446694,-500.0,0.00021917,2]
[332430482,1721177446704,-500.0,0.00021917,2]
[332430483,1721177446714,-500.0,0.00021917,2]
[332430484,1721177446725,-502.87594549,0.00021917,2]
[332430485,1721177446735,-500.0,0.00021917,2]
[332430486,1721177446747,-500.0,0.00021917,2]
[332430487,1721177446756,-200.0,0.00021917,2]
[332430488,1721177446766,-500.0,0.00021917,2]
[332430489,1721177446776,-500.0,0.00021917,2]
[332430490,1721177446786,-500.0,0.00021917,2]
[332430491,1721177446795,-500.9028333,0.00021917,2]
[332430492,1721177446805,-500.0,0.00021917,2]
[332430493,1721177446814,-500.0,0.00021917,2]
[332430494,1721177446824,-500.0,0.00021917,2]
[332430495,1721177446835,-500.0,0.00021917,2]
[332430496,1721177446845,-508.49916907,0.00021917,2]
[332430497,1721177446856,-232.30979838,0.00021917,2]
[332430498,1721177446866,-500.0,0.00021917,2]
[332430501,1721177446877,-500.0,0.00021917,2]
[332430503,1721177446888,-500.0,0.00021917,2]
[332430504,1721177446899,-500.0,0.00021917,2]
[332430505,1721177446910,-500.0,0.00021917,2]
[332430506,1721177446921,-500.0,0.00021917,2]
[332430508,1721177446931,-500.0,0.00021917,2]
[332430510,1721177446944,-500.0,0.00021917,2]
[332430511,1721177446953,-511.29,0.00021917,2]
[332430512,1721177446962,-151.0,0.00021917,2]
[332430513,1721177446971,-503.33369823,0.00021917,2]
[332430517,1721177447111,-500.0,0.00021917,2]
[332430518,1721177447122,-500.0,0.00021917,2]
[332430519,1721177447133,-151.0,0.00021917,2]
[332430520,1721177447145,-411.451966,0.00021917,2]
[332430521,1721177447156,-411.451966,0.00021917,2]
[332430523,1721177447165,-500.0,0.00021917,2]
[332430525,1721177447176,-500.0,0.00021917,2]
[332430527,1721177447187,-500.0,0.00021917,2]
[332430529,1721177447200,-595.27,0.00021917,2]
[332430530,1721177447209,-500.0,0.00021917,2]
[332430532,1721177447218,-500.0,0.00021917,2]
[332430533,1721177447227,-500.0,0.00021917,2]
[332430534,1721177447237,-500.0,0.00021917,2]
[332430535,1721177447246,-500.0,0.00021917,2]
[332430536,1721177447256,-500.0,0.00021917,2]
[332430537,1721177447266,-151.0,0.00021917,2]
[332430538,1721177447277,-155.02784,0.00021917,2]
[332430539,1721177447288,-500.0,0.00021917,2]
[332430540,1721177447299,-155.02784,0.00021917,2]
[332430541,1721177447309,-500.0,0.00021917,2]
[332430542,1721177447321,-500.0,0.00021917,2]
[332430543,1721177447333,-500.0,0.00021917,2]
[332430544,1721177447346,-500.0,0.00021917,2]
[332430545,1721177447358,-151.0,0.00021917,2]
[332430546,1721177447368,-153.0,0.00021918,2]
[332430547,1721177447379,-153.0,0.00021918,2]
[332430548,1721177447391,-153.0,0.00021918,2]
[332430549,1721177447401,-153.0,0.00021918,2]
[332430550,1721177447412,-153.0,0.00021918,2]
[332430551,1721177447423,-153.0,0.00021918,2]
[332430552,1721177447434,-153.0,0.00021918,2]
[332430553,1721177447447,-153.0,0.00021918,2]
[332430554,1721177447458,-153.0,0.00021918,2]
[332430555,1721177447467,-153.0,0.00021918,2]
[332430556,1721177447478,-153.0,0.00021918,2]
[332430557,1721177447489,-153.0,0.00021918,2]
[332430558,1721177447499,-153.0,0.00021918,2]
[332430559,1721177447512,-153.0,0.00021918,2]
[332430560,1721177447523,-153.0,0.00021918,2]
[332430561,1721177447533,-153.0,0.00021918,2]
[332430562,1721177447545,-153.0,0.00021918,2]
[332430563,1721177447556,-153.0,0.00021918,2]
[332430564,1721177447566,-153.0,0.00021918,2]
[332430565,1721177447576,-153.0,0.00021918,2]
[332430566,1721177447585,-153.0,0.00021918,2]
[332430567,1721177447595,-153.0,0.00021918,2]
[332430568,1721177447605,-153.0,0.00021918,2]
[332430569,1721177447616,-153.0,0.00021918,2]
[332430570,1721177447626,-153.0,0.00021918,2]
[332430571,1721177447638,-153.0,0.00021918,2]
[332430572,1721177447648,-153.0,0.00021918,2]
[332430573,1721177447658,-153.0,0.00021918,2]
[332430574,1721177447667,-153.0,0.00021918,2]
[332430575,1721177447677,-153.0,0.00021918,2]
[332430576,1721177447686,-153.0,0.00021918,2]
[332430577,1721177447700,-153.0,0.00021918,2]
[332430578,1721177447711,-153.0,0.00021918,2]
[332430579,1721177447722,-153.0,0.00021918,2]
[332430580,1721177447737,-153.0,0.00021918,2]
[332430581,1721177447746,-166.666666,0.00021918,2]
[332430582,1721177447756,-153.0,0.00021918,2]
[332430583,1721177447766,-153.0,0.00021918,2]
[332430584,1721177447777,-153.0,0.00021918,2]
[332430585,1721177447787,-153.0,0.00021918,2]
[332430586,1721177447798,-153.0,0.00021918,2]
[332430587,1721177447808,-153.0,0.00021918,2]
[332430588,1721177447818,-153.0,0.00021918,2]
[332430589,1721177447828,-153.0,0.00021918,2]
[332430590,1721177447838,-153.0,0.00021918,2]
[332430591,1721177447848,-153.0,0.00021918,2]
[332430592,1721177447858,-153.0,0.00021918,2]
[332430593,1721177447867,-153.0,0.00021918,2]
[332430594,1721177447878,-153.0,0.00021918,2]
[332430595,1721177447888,-153.0,0.00021918,2]
[332430596,1721177447898,-153.0,0.00021918,2]
[332430597,1721177447908,-153.0,0.00021918,2]
[332430598,1721177447918,-153.0,0.00021918,2]
[332430599,1721177447928,-153.0,0.00021918,2]
[332430600,1721177447938,-153.0,0.00021918,2]
[332430601,1721177447954,-153.0,0.00021918,2]
[332430602,1721177447964,-153.0,0.00021918,2]
[332430603,1721177447975,-153.0,0.00021918,2]
[332430604,1721177447984,-153.0,0.00021918,2]
[332430605,1721177447994,-153.0,0.00021918,2]
[332430606,1721177448004,-153.0,0.00021918,2]
[332430607,1721177448014,-153.0,0.00021918,2]
[332430608,1721177448024,-153.0,0.00021918,2]
[332430609,1721177448033,-153.0,0.00021918,2]
[332430610,1721177448044,-151.0,0.00021918,7]
[332430611,1721177448053,-151.0,0.00021918,7]
[332430612,1721177448062,-151.0,0.00021918,7]
[332430613,1721177448071,-151.0,0.00021918,7]
[332430614,1721177448082,-353.4049089,0.0002194,2]
[332430615,1721177448092,-151.0,0.00021972,2]
[332430616,1721177448102,-248.1002,0.00022,2]
[332430617,1721177448112,-161.0,0.00022,2]
[332430618,1721177448122,-174.0,0.00022,2]
[332430619,1721177448132,-154.74467129,0.00022016,2]
[332430620,1721177448141,-20856.7942675,0.00022078,3]
[332430621,1721177448151,-4945.28930852,0.00022114,2]
[332430622,1721177448161,-151.0,0.00022181,7]
[332430623,1721177448171,-151.0,0.00022181,2]
[332430624,1721177448181,-151.0,0.00022181,7]
[332430625,1721177448191,-151.0,0.00022181,7]
[332430626,1721177448204,-151.0,0.00022181,7]
[332430627,1721177448215,-151.0,0.00022181,7]
[332430628,1721177448225,-151.0,0.00022181,7]
[332430629,1721177448235,-1281.92,0.0002219,2]
[332430630,1721177448246,-1281.92,0.0002219,2]
[332430631,1721177448255,-1281.92,0.0002219,2]
[332430632,1721177448265,-1281.92,0.0002219,2]
[332430633,1721177448275,-1282.12,0.0002219,2]
[332430634,1721177448285,-16297.96127825,0.00022191,5]
[332430635,1721177448295,-241.41211428,0.00022191,2]
[332430636,1721177448305,-500.0,0.00022191,2]
[332430637,1721177448314,-500.0,0.00022191,2]
[332430638,1721177448324,-500.0,0.00022191,2]
[332430639,1721177448334,-500.0,0.00022191,2]
[332430640,1721177448345,-500.0,0.00022191,2]
[332430641,1721177448358,-500.0,0.00022191,2]
[332430642,1721177448368,-500.0,0.00022191,2]
[332430643,1721177448377,-500.0,0.00022191,2]
[332430644,1721177448387,-500.0,0.00022191,2]
[332430645,1721177448399,-500.0,0.00022191,2]
[332430646,1721177448408,-500.0,0.00022191,2]
[332430647,1721177448418,-500.0,0.00022191,2]
[332430648,1721177448428,-500.0,0.00022191,2]
[332430649,1721177448438,-500.0,0.00022191,2]
[332430650,1721177448450,-500.0,0.00022191,2]
[332430651,1721177448460,-500.0,0.00022191,2]
[332430652,1721177448469,-500.0,0.00022191,2]
[332430653,1721177448478,-500.0,0.00022191,2]
[332430654,1721177448487,-577.28204733,0.00022191,2]
[332430655,1721177448497,-500.0,0.00022191,2]
[332430656,1721177448508,-500.0,0.00022191,2]
[332430657,1721177448517,-170.91,0.00022191,2]
[332430658,1721177448528,-500.0,0.00022191,2]
[332430659,1721177448537,-500.0,0.00022191,2]
[332430660,1721177448548,-500.0,0.00022191,2]
[332430661,1721177448558,-500.0,0.00022191,2]
[332430662,1721177448569,-500.0,0.00022191,2]
[332430663,1721177448580,-464.64953607,0.00022191,2]
[332430664,1721177448633,24900.0,0.0001525,2]
[332430665,1721177448681,-197.54512246,0.00019165,2]
[332430666,1721177448694,-35.35046393,0.00022191,2]
[332430667,1721177448704,-500.0,0.00022191,2]
[332430668,1721177448714,-500.0,0.00022191,2]
[332430669,1721177448723,-500.0,0.00022191,2]
[332430670,1721177448732,-295.66835876,0.00022191,2]
[332430671,1721177448742,-500.0,0.00022191,2]
[332430672,1721177448753,-500.0,0.00022191,2]
[332430673,1721177448763,-593.87920777,0.00022191,2]
[332430674,1721177448774,-251.23125357,0.00022191,2]
[332430675,1721177448784,-500.0,0.00022191,2]
[332430676,1721177448794,-500.0,0.00022191,2]
[332430677,1721177448804,-500.0,0.00022191,2]
[332430678,1721177448814,-500.0,0.00022191,2]
[332430679,1721177448825,-248.5,0.00022191,2]
[332430680,1721177448834,-500.0,0.00022191,2]
[332430681,1721177448843,-500.0,0.00022191,2]
[332430682,1721177448853,-500.0,0.00022191,2]
[332430683,1721177448863,-500.0,0.00022191,2]
[332430684,1721177448872,-500.0,0.00022191,2]
[332430685,1721177448882,-500.0,0.00022191,2]
[332430686,1721177448892,-448.83038451,0.00022191,2]
[332430689,1721177553276,154.92966002,0.00014999,2]
[332430695,1721177569754,158.35036999,0.00014999,2]
[332430697,1721177571887,458.6000957,0.00014999,2]
[332430698,1721177574383,156.37674716,0.00014999,2]
[332430699,1721177578663,778.04856015,0.00014999,2]
[332430700,1721177582873,240.27901755,0.00014999,2]
[332430701,1721177584591,159.81747957,0.00014999,2]
[332430703,1721177590051,441.04727659,0.00014999,2]
[332430706,1721177599491,285.69121963,0.00014999,2]
[332430707,1721177611702,181.99358522,0.00014999,2]
[332430708,1721177612503,2293.68640805,0.00014999,2]
[332430709,1721177617790,950.73004336,0.00015,2]
[332430710,1721177622603,191.14573132,0.00014999,2]
[332430713,1721177707605,159.81747957,0.00014999,2]
[332430714,1721177726398,720.01545952,0.00014999,2]
[332430716,1721177734134,230.84626702,0.00014999,2]
[332430717,1721177735234,5963.30631602,0.00014998,2]
[332430718,1721177745701,819.26,0.00010959,2]
[332430719,1721177762729,212.57443582,0.00014999,2]
[332430720,1721177795384,950.73004336,0.00015,2]
[332430722,1721177807236,309.24235622,0.00014999,2]
[332430725,1721177850093,159.66841707,0.00014999,2]
[332430731,1721177945779,831.64034204,0.00015,2]
[332430733,1721177963043,24900.0,0.0001525,2]
[332430736,1721178047517,224.02725803,0.00014999,2]
[332430738,1721178065930,325.2303676,0.00015372,2]
[332430741,1721178159991,1448.79211736,0.00015,2]
[332430742,1721178163248,481.11245122,0.00014999,2]
[332430743,1721178182990,224.02725803,0.00014999,2]
[332430744,1721178193800,165.192262,0.00015364,2]
[332430745,1721178194043,165.192262,0.00015564,2]
[332430746,1721178194289,165.192262,0.00015764,2]
[332430747,1721178194525,165.192262,0.00015964,2]
[332430749,1721178287427,1436.57937401,0.00014999,2]
[332430750,1721178315240,481.11245122,0.00014999,2]
[332430751,1721178338995,224.02725803,0.00014999,2]
[332430752,1721178347641,268.236401,0.00015227,2]
[332430754,1721178476553,753.95,0.00010959,2]
[332430755,1721178483000,224.02725803,0.00014999,2]
[332430756,1721178528583,238.68124308,0.00015227,2]
[332430757,1721178545303,-280.59616533,0.00016055,2]
[332430760,1721178603244,309.16109162,0.00014999,2]
[332430761,1721178604466,345.81993579,0.00014999,2]
[332430762,1721178610451,980.77879208,0.00014999,2]
[332430763,1721178625743,804.05978385,0.00014999,2]
[332430771,1721178631862,-1074.71063832,0.00016154,2]
[332430772,1721178631872,-165.192262,0.00016164,2]
[332430773,1721178631891,-300.0,0.00016244,2]
[332430774,1721178631905,-300.0,0.00016244,2]
[332430775,1721178631916,-23595.0074029,0.00016245,2]
[332430776,1721178631927,-1001.4068864,0.00016253,2]
[332430777,1721178631938,-4899.32760291,0.00016254,2]
[332430778,1721178631958,-34462.60998,0.00016254,2]
[332430779,1721178631972,-17939.71466026,0.00016254,2]
[332430780,1721178631983,-192.64953868,0.00016254,2]
[332430781,1721178631994,-9095.71252414,0.00016255,2]
[332430833,1721178637918,-1847.64465184,0.00016255,2]
[332430877,1721178640924,-6333.00995174,0.00016255,2]
[332430879,1721178640934,-34978.9335217,0.00016255,2]
[332430881,1721178640944,-42291.50925035,0.00016255,2]
[332430883,1721178640956,-275.81822591,0.00016255,2]
[332430885,1721178640965,-276.97473649,0.00016801,2]
[332430887,1721178640975,-309.02634786,0.00017159,2]
[332430889,1721178640984,-1074.71063829,0.00017638,2]
[332430891,1721178640993,-420.0,0.00017868,2]
[332430892,1721178641002,-2401.90090886,0.00018,2]
[332430893,1721178641011,-154.92474718,0.0001818,2]
[332430894,1721178641020,-191.36840556,0.0001818,2]
[332430895,1721178641029,-487.92093519,0.0001818,2]
[332430896,1721178641038,-1031.8248657,0.000189,2]
[332430897,1721178641049,-197.54512246,0.00019056,2]
[332430898,1721178641059,-197.54512246,0.00019056,2]
[332430899,1721178641068,-1074.71063829,0.00019122,2]
[332430900,1721178641078,-154.72922386,0.00019165,2]
[332430901,1721178641087,-154.72922386,0.00019165,2]
[332430902,1721178641096,-161.736781,0.00019178,2]
[332430903,1721178641105,-164.469262,0.00019178,2]
[332430904,1721178641114,-587.0,0.00019655,2]
[332430905,1721178641123,-435.0,0.0002,2]
[332430906,1721178641133,-305.44359907,0.0002,2]
[332430907,1721178641143,-293.73911192,0.0002,2]
[332430908,1721178641157,-174.12453479,0.0002,2]
[332430909,1721178641167,-309.11901082,0.0002,2]
[332430910,1721178641177,-1074.71063829,0.00020606,2]
[332430911,1721178641190,-285.0,0.00021,2]
[332430912,1721178641200,-293.07198507,0.00021,2]
[332430913,1721178641209,-471.32873,0.00021096,2]
[332430914,1721178641219,-823.0,0.00021621,2]
[332430915,1721178641231,-1407.0,0.00021715,2]
[332430916,1721178641241,-229.41757764,0.00021731,2]
[332430951,1721178643696,-126.93593125,0.00021731,2]
[332430952,1721178643707,-795.52060711,0.00021754,2]
[332430953,1721178643717,-409.5426384,0.00021863,2]
[332430954,1721178643727,-306.0,0.00021863,2]
[332430955,1721178643737,-9984.33602866,0.00021907,3]
[332430965,1721178643863,-9373.45966854,0.00021907,3]
[332430967,1721178643874,-2105.79273033,0.00021907,3]
[332430969,1721178643887,-6139.86015842,0.00021907,3]
[332430985,1721178849691,195.94021615,0.00014999,2]
[332430987,1721178956268,150.0,0.00027397,120]
[332430989,1721179200776,767.27,0.00027397,120]
[332430990,1721179237177,24900.0,0.00015396,2]
[332430991,1721179280909,239.71,0.00027397,120]
[332430992,1721179358026,24611.375679,0.00024,60]
[332430996,1721179487173,608.4323747,0.00015,2]
[332430997,1721179512645,545.55437262,0.00014999,2]
[332431007,1721179761689,24900.0,0.0001577,2]
[332431008,1721179777836,309.18067122,0.00014999,2]
[332431009,1721179784490,156.42124676,0.00014999,2]
[332431056,1721179833360,-496.56843249,0.00016154,2]
[332431057,1721179833370,-122.32781248,0.00016244,2]
[332431080,1721179838859,-177.67218752,0.00016244,2]
[332431081,1721179838870,-300.0,0.00016244,2]
[332431082,1721179838886,-83963.315708,0.00016245,2]
[332431083,1721179838895,-244.53055577,0.00016254,2]
[332431085,1721179838905,-57301.65224317,0.00016255,2]
[332431086,1721179838914,-14418.71665996,0.00016255,2]
[332431087,1721179838923,-34978.9335217,0.00016255,2]
[332431088,1721179838932,-42291.50925035,0.00016255,2]
[332431089,1721179838941,-276.97473649,0.00016812,2]
[332431090,1721179838953,-276.97473649,0.00016812,2]
[332431091,1721179838963,-496.56843245,0.00017091,2]
[332431092,1721179838972,-420.0,0.00017756,2]
[332431093,1721179838982,-420.0,0.00017868,2]
[332431094,1721179838991,-496.56843245,0.00018027,2]
[332431095,1721179839001,-154.76406036,0.0001818,2]
[332431096,1721179839010,-155.09644572,0.0001818,2]
[332431097,1721179839020,-154.87437224,0.0001818,2]
[332431098,1721179839029,-936.71562116,0.0001818,2]
[332431099,1721179839038,-154.78054216,0.0001818,2]
[332431100,1721179839048,-191.36840556,0.00018798,2]
[332431101,1721179839058,-496.56843245,0.00018964,2]
[332431102,1721179839067,-312.22989127,0.00019039,2]
[332431103,1721179839079,-164.681754,0.00019178,2]
[332431104,1721179839089,-587.0,0.00019408,2]
[332431105,1721179839098,-587.0,0.00019655,2]
[332431106,1721179839108,-353.8068118,0.00019703,2]
[332431107,1721179839117,-353.8068118,0.00019783,2]
[332431108,1721179839126,-496.56843245,0.000199,2]
[332431109,1721179839135,-500.0,0.00019999,2]
[332431110,1721179839145,-200.46669457,0.00019999,2]
[332431111,1721179839154,-500.0,0.00019999,2]
[332431112,1721179839163,-545.21504113,0.00019999,2]
[332431113,1721179839172,-500.0,0.00019999,2]
[332431114,1721179839182,-500.0,0.00019999,2]
[332431115,1721179839191,-500.0,0.00019999,2]
[332431116,1721179839201,-230.27058303,0.00019999,2]
[332431117,1721179839210,-500.0,0.00019999,2]
[332431118,1721179839219,-500.0,0.00019999,2]
[332431119,1721179839228,-307.50669084,0.00019999,2]
[332431120,1721179839238,-500.0,0.00019999,2]
[332431121,1721179839258,-500.0,0.00019999,2]
[332431122,1721179839269,-500.0,0.00019999,2]
[332431123,1721179839279,-500.0,0.00019999,2]
[332431124,1721179839289,-626.59049454,0.00019999,2]
[332431125,1721179839299,-500.0,0.00019999,2]
[332431126,1721179839308,-500.0,0.00019999,2]
[332431127,1721179839318,-176.04287442,0.00019999,2]
[332431128,1721179839329,-500.0,0.00019999,2]
[332431129,1721179839339,-500.0,0.00019999,2]
[332431130,1721179839349,-500.0,0.00019999,2]
[332431131,1721179839359,-500.0,0.00019999,2]
[332431132,1721179839369,-500.0,0.00019999,2]
[332431133,1721179839379,-500.0,0.00019999,2]
[332431134,1721179839389,-500.0,0.00019999,2]
[332431135,1721179839399,-500.0,0.00019999,2]
[332431136,1721179839409,-500.0,0.00019999,2]
[332431137,1721179839419,-58362.14510996,0.0002,5]
[332431138,1721179839430,-309.47619873,0.0002,2]
[332431139,1721179839440,-228.28740449,0.0002,2]
[332431140,1721179839450,-154.86547091,0.0002,2]
[332431141,1721179839459,-252.60029946,0.0002,2]
[332431142,1721179839469,-154.74467129,0.0002,2]
[332431143,1721179839479,-154.74467129,0.0002,2]
[332431144,1721179839489,-293.84391681,0.0002,2]
[332431145,1721179839499,-158.77040209,0.0002,2]
[332431146,1721179839509,-1164.00123319,0.0002,2]
[332431147,1721179839519,-214.93367003,0.0002,2]
[332431148,1721179839529,-154.88949836,0.0002,2]
[332431149,1721179839539,-26126.81363761,0.00020059,5]
[332431150,1721179839548,-4945.28930852,0.00020059,2]
[332431151,1721179839558,-353.8068118,0.00020194,2]
[332431152,1721179839568,-353.8068118,0.00020368,2]
[332431153,1721179839579,-4945.28930852,0.00020432,2]
[332431158,1721179839786,-353.8068118,0.00020575,2]
[332431160,1721179839799,-4237.16242018,0.0002066,7]
[332431161,1721179839809,-4945.28930852,0.00020662,2]
[332431162,1721179839819,-4945.28930852,0.00020894,2]
[332431163,1721179839830,-353.8068118,0.00020951,2]
[332431164,1721179839840,-125944.973562,0.0002098,3]
[332431165,1721179839850,-114012.91357091,0.0002099,2]
[332431166,1721179839860,-151.0,0.0002099,2]
[332431167,1721179839870,-165.751822,0.0002099,2]
[332431168,1721179839883,-1276.347912,0.0002099,2]
[332431169,1721179839893,-151.0,0.0002099,2]
[332431170,1721179839902,-165.751822,0.0002099,2]
[332431171,1721179839912,-1276.347912,0.0002099,2]
[332431173,1721179839922,-151.0,0.0002099,2]
[332431175,1721179839932,-502.149024,0.0002099,2]
[332431176,1721179839942,-502.149024,0.0002099,2]
[332431177,1721179839953,-151.0,0.0002099,2]
[332431178,1721179839963,-151.0,0.0002099,2]
[332431179,1721179839972,-152.685387,0.0002099,2]
[332431180,1721179839983,-202.067749,0.0002099,2]
[332431181,1721179839992,-299.58099341,0.00021,2]
[332431182,1721179840002,-153.0,0.00021041,2]
[332431183,1721179840012,-153.0,0.00021041,2]
[332431184,1721179840022,-153.0,0.00021041,2]
[332431185,1721179840035,-153.0,0.00021041,2]
[332431186,1721179840046,-153.7297742,0.00021041,2]
[332431187,1721179840056,-154.9174522,0.00021041,2]
[332431189,1721179840066,-447.762293,0.00021096,2]
[332431190,1721179840079,-214.660052,0.00021096,2]
[332431191,1721179840088,-823.0,0.00021214,2]
[332431192,1721179840098,-353.8068118,0.00021225,2]
[332431193,1721179840107,-153.0,0.00021278,2]
[332431194,1721179840116,-212.6916973,0.00021278,2]
[332431195,1721179840125,-160.0,0.00021282,3]
[332431196,1721179840134,-4945.28930852,0.00021292,2]
[332431197,1721179840144,-289.18175283,0.00021329,2]
[332431198,1721179840153,-4945.28930852,0.00021409,2]
[332431199,1721179840164,-823.0,0.00021621,2]
[332431200,1721179840173,-353.80681187,0.00021625,2]
[332431201,1721179840183,-10119.72747558,0.00021798,2]
[332431202,1721179840192,-5768.735317,0.000218,2]
[332431203,1721179840202,-2837.65976581,0.000218,7]
[332431204,1721179840211,-2000.0,0.00021807,2]
[332431206,1721179840221,-88888.0,0.00021807,3]
[332431208,1721179840231,-165.751822,0.00021807,2]
[332431210,1721179840241,-1276.347912,0.00021807,2]
[332431211,1721179840251,-151.0,0.00021807,2]
[332431212,1721179840261,-165.751822,0.00021807,2]
[332431213,1721179840271,-1276.347912,0.00021807,2]
[332431214,1721179840281,-285.382396,0.00021807,2]
[332431215,1721179840290,-502.149024,0.00021807,2]
[332431216,1721179840300,-502.149024,0.00021807,2]
[332431217,1721179840310,-151.0,0.00021807,2]
[332431218,1721179840319,-151.0,0.00021807,2]
[332431219,1721179840333,-153003.25196457,0.0002185,2]
[332431220,1721179840342,-165.751822,0.0002185,2]
[332431221,1721179840351,-1276.347912,0.0002185,2]
[332431222,1721179840360,-156.766238,0.0002185,2]
[332431223,1721179840369,-165.751822,0.0002185,2]
[332431224,1721179840379,-1276.347912,0.0002185,2]
[332431225,1721179840388,-502.149024,0.0002185,2]
[332431226,1721179840398,-502.149024,0.0002185,2]
[332431227,1721179840407,-151.0,0.0002185,2]
[332431228,1721179840417,-151.0,0.0002185,2]
[332431229,1721179840426,-153.0,0.00021863,2]
[332431230,1721179840435,-153.0,0.00021863,2]
[332431231,1721179840445,-293.5691494,0.00021863,2]
[332431232,1721179840455,-153.0,0.00021863,2]
[332431233,1721179840464,-153.0,0.00021863,2]
[332431234,1721179840474,-306.0,0.00021863,2]